Body Name,Body,Service Division,Expense Type,Date Paid,Transaction Ref,Invoice Amount,Supplier Name
Boston Borough Council,http://statistics.data.gov.uk/id/local-authority/32UB,Communities,Grants and Contributions to Outside Bodies - No Service Received,05/01/2023,30002636,"5,500.00",MPL Home Improvement Services LTD
Boston Borough Council,http://statistics.data.gov.uk/id/local-authority/32UB,Economic Development,Works to Buildings (Main Contractor),05/01/2023,30002661,"17,825.56",Central Bank St Botolphs Church
Boston Borough Council,http://statistics.data.gov.uk/id/local-authority/32UB,Operations,Agency Staff,05/01/2023,30002307,"2,027.22",Comensura LTD
Boston Borough Council,http://statistics.data.gov.uk/id/local-authority/32UB,Operations,Agency Staff,05/01/2023,30002602,393,Workforce (Boston) LTD
Boston Borough Council,http://statistics.data.gov.uk/id/local-authority/32UB,Operations,Maintenance,05/01/2023,30002226,250,Chris Sellars Groundcare LTD
Boston Borough Council,http://statistics.data.gov.uk/id/local-authority/32UB,Operations,Other Miscellaneous Expenses,05/01/2023,30002018,500,Phil Haines Coaches LTD
Boston Borough Council,http://statistics.data.gov.uk/id/local-authority/32UB,Operations,Vehicle Hire,05/01/2023,30002164,840,Euro Municipal LTD
Boston Borough Council,http://statistics.data.gov.uk/id/local-authority/32UB,Property Services,Agency Staff,05/01/2023,30002602,393,Workforce (Boston) LTD
Boston Borough Council,http://statistics.data.gov.uk/id/local-authority/32UB,Property Services,Materials and Consumables,05/01/2023,30002560,306.23,Periam and Williamson Ltd
Boston Borough Council,http://statistics.data.gov.uk/id/local-authority/32UB,Property Services,Materials and Consumables,05/01/2023,30002561,"1,154.60",Glen Farrow UK LTD
Boston Borough Council,http://statistics.data.gov.uk/id/local-authority/32UB,Property Services,Materials and Consumables,05/01/2023,30002567,"1,349.95",C G Godfrey LTD
Boston Borough Council,http://statistics.data.gov.uk/id/local-authority/32UB,Property Services,Materials and Consumables,05/01/2023,30002568,"1,915.73",Nerg
Boston Borough Council,http://statistics.data.gov.uk/id/local-authority/32UB,Property Services,Materials and Consumables,05/01/2023,30002600,350,C G Godfrey LTD
Boston Borough Council,http://statistics.data.gov.uk/id/local-authority/32UB,BTAC,Equipment Lease Payments (Less than 12 months),10/01/2023,30002275,"2,500.00",Popcorn Media
Boston Borough Council,http://statistics.data.gov.uk/id/local-authority/32UB,BTAC,Grants and Contributions to Outside Bodies - No Service Received,10/01/2023,30002688,958,Headway Lincolnshire
Boston Borough Council,http://statistics.data.gov.uk/id/local-authority/32UB,BTAC,Grants and Contributions to Outside Bodies - No Service Received,10/01/2023,30002707,"1,000.00",HWLincs
Boston Borough Council,http://statistics.data.gov.uk/id/local-authority/32UB,Communities,Bed and Breakfast Accommodation (Homelessness Service),10/01/2023,30002694,653.24,Twenty Hotel And Bar (Boston) LTD
Boston Borough Council,http://statistics.data.gov.uk/id/local-authority/32UB,Communities,Bed and Breakfast Accommodation (Homelessness Service),10/01/2023,30002695,326.62,Twenty Hotel And Bar (Boston) LTD
Boston Borough Council,http://statistics.data.gov.uk/id/local-authority/32UB,Communities,Bed and Breakfast Accommodation (Homelessness Service),10/01/2023,30002696,653.3,Twenty Hotel And Bar (Boston) LTD
Boston Borough Council,http://statistics.data.gov.uk/id/local-authority/32UB,Communities,Bed and Breakfast Accommodation (Homelessness Service),10/01/2023,30002698,890,Twenty Hotel And Bar (Boston) LTD
Boston Borough Council,http://statistics.data.gov.uk/id/local-authority/32UB,Communities,Bed and Breakfast Accommodation (Homelessness Service),10/01/2023,30002699,"1,743.00",Fairfield Guest House
Boston Borough Council,http://statistics.data.gov.uk/id/local-authority/32UB,Communities,Bed and Breakfast Accommodation (Homelessness Service),10/01/2023,30002701,300,Smart Move (Boston) LTD
Boston Borough Council,http://statistics.data.gov.uk/id/local-authority/32UB,Communities,Grants and Contributions to Outside Bodies - No Service Received,10/01/2023,30002765,"4,834.12",R G Carter Building Ltd
Boston Borough Council,http://statistics.data.gov.uk/id/local-authority/32UB,Economic Development,Professional Fees,10/01/2023,30002702,"2,610.00",Park Avenue Recruitment
Boston Borough Council,http://statistics.data.gov.uk/id/local-authority/32UB,Environmental Health,Professional and Contractors Fees,10/01/2023,30002729,"1,120.83",Pestinator UK LTD
Boston Borough Council,http://statistics.data.gov.uk/id/local-authority/32UB,Information Technology,Telephone and Mobiles,10/01/2023,30002680,"1,622.12",Vodafone
Boston Borough Council,http://statistics.data.gov.uk/id/local-authority/32UB,Operations,Agency Staff,10/01/2023,30002691,393,Workforce (Boston) LTD
Boston Borough Council,http://statistics.data.gov.uk/id/local-authority/32UB,Operations,Agency Staff,10/01/2023,30002703,"1,879.27",Comensura LTD
Boston Borough Council,http://statistics.data.gov.uk/id/local-authority/32UB,Operations,Agency Staff,10/01/2023,30002706,"2,059.75",Comensura LTD
Boston Borough Council,http://statistics.data.gov.uk/id/local-authority/32UB,Operations,Maintenance,10/01/2023,30002550,213.55,Specialist Fleet Services LTD
Boston Borough Council,http://statistics.data.gov.uk/id/local-authority/32UB,Property Services,Agency Staff,10/01/2023,30002648,"7,484.76",MPD FM (UK) Limited
Boston Borough Council,http://statistics.data.gov.uk/id/local-authority/32UB,Property Services,Agency Staff,10/01/2023,30002650,935.85,MPD FM (UK) Limited
Boston Borough Council,http://statistics.data.gov.uk/id/local-authority/32UB,Property Services,Agency Staff,10/01/2023,30002691,393,Workforce (Boston) LTD
Boston Borough Council,http://statistics.data.gov.uk/id/local-authority/32UB,Property Services,Furniture and Equipment,10/01/2023,30002647,310,Nerg
Boston Borough Council,http://statistics.data.gov.uk/id/local-authority/32UB,Property Services,Materials and Consumables,10/01/2023,30002566,"1,866.00",CSS Pools And Leisure LTD
Boston Borough Council,http://statistics.data.gov.uk/id/local-authority/32UB,Property Services,Materials and Consumables,10/01/2023,30002652,219.72,Periam and Williamson Ltd
Boston Borough Council,http://statistics.data.gov.uk/id/local-authority/32UB,Bereavement,Professional and Contractors Fees,12/01/2023,30002799,980.5,"""Personal Information Redacted"""
Boston Borough Council,http://statistics.data.gov.uk/id/local-authority/32UB,Communities,Grants and Contributions to Outside Bodies - No Service Received,12/01/2023,30002637,"6,026.33",Acis Homeplus LTD
Boston Borough Council,http://statistics.data.gov.uk/id/local-authority/32UB,Communities,Grants and Contributions to Outside Bodies - No Service Received,12/01/2023,30002822,"2,584.05",MPL Home Improvement Services LTD
Boston Borough Council,http://statistics.data.gov.uk/id/local-authority/32UB,Communities,Grants and Contributions to Outside Bodies - No Service Received,12/01/2023,30002838,"1,690.21",R A Joinery
Boston Borough Council,http://statistics.data.gov.uk/id/local-authority/32UB,Communities,"Purchase of Plant, Machinery and Equipment",12/01/2023,30002174,"22,000.00",Videcom Security LTD
Boston Borough Council,http://statistics.data.gov.uk/id/local-authority/32UB,"Democratic, Civic & Electoral Services",External Printing and Design Costs,12/01/2023,30002828,"1,017.65",Civica Election Services LTD
Boston Borough Council,http://statistics.data.gov.uk/id/local-authority/32UB,Economic Development,Professional Fees,12/01/2023,30002829,"3,698.10",Influence Landscape Planning & Design Ltd
Boston Borough Council,http://statistics.data.gov.uk/id/local-authority/32UB,Economic Development,Professional Fees,12/01/2023,30002830,"4,019.00",Influence Landscape Planning & Design Ltd
Boston Borough Council,http://statistics.data.gov.uk/id/local-authority/32UB,Economic Development,Professional Fees,12/01/2023,30002832,"1,083.00",Marrons Planning
Boston Borough Council,http://statistics.data.gov.uk/id/local-authority/32UB,Human Resources,Other Income,12/01/2023,30002814,-5.53,Unison East Midlands Regional Centre
Boston Borough Council,http://statistics.data.gov.uk/id/local-authority/32UB,Operations,Agency Staff,12/01/2023,30002800,"2,760.35",Comensura LTD
Boston Borough Council,http://statistics.data.gov.uk/id/local-authority/32UB,Operations,Vehicle Hire,12/01/2023,30002563,680,Phil Haines Coaches LTD
Boston Borough Council,http://statistics.data.gov.uk/id/local-authority/32UB,Planning,Professional and Contractors Fees,12/01/2023,30002767,"1,062.50",DPA Planning Ltd
Boston Borough Council,http://statistics.data.gov.uk/id/local-authority/32UB,Property Services,Materials and Consumables,12/01/2023,30002651,227.06,Periam and Williamson Ltd
Boston Borough Council,http://statistics.data.gov.uk/id/local-authority/32UB,Bereavement,Furniture and Equipment,17/01/2023,30002780,"1,475.00",Matthews Environmental Solutions LTD
Boston Borough Council,http://statistics.data.gov.uk/id/local-authority/32UB,BTAC,Performers and Entertainers Fees,17/01/2023,30002871,"29,000.00",University of Lincoln
Boston Borough Council,http://statistics.data.gov.uk/id/local-authority/32UB,Communities,Bed and Breakfast Accommodation (Homelessness Service),17/01/2023,30002873,"9,100.00",The Lord Grey Hotel t/a The Lord Grey Ltd
Boston Borough Council,http://statistics.data.gov.uk/id/local-authority/32UB,Communities,Bed and Breakfast Accommodation (Homelessness Service),17/01/2023,30002886,"1,743.00",Fairfield Guest House
Boston Borough Council,http://statistics.data.gov.uk/id/local-authority/32UB,Corporate,Purchase of Software,17/01/2023,30002692,"3,300.00",Goss Interactive LTD
Boston Borough Council,http://statistics.data.gov.uk/id/local-authority/32UB,Corporate,Purchase of Software,17/01/2023,30002693,"7,500.00",Goss Interactive LTD
Boston Borough Council,http://statistics.data.gov.uk/id/local-authority/32UB,Economic Development,Professional Fees,17/01/2023,30002769,"11,200.00",Socotec UK Limited
Boston Borough Council,http://statistics.data.gov.uk/id/local-authority/32UB,Economic Development,Professional Fees,17/01/2023,30002833,"20,838.00",Heritage Trust of Lincolnshire LTD
Boston Borough Council,http://statistics.data.gov.uk/id/local-authority/32UB,Environmental Health,Furniture and Equipment,17/01/2023,30002700,819,Gradko International LTD
Boston Borough Council,http://statistics.data.gov.uk/id/local-authority/32UB,Environmental Health,Other Miscellaneous Expenses,17/01/2023,30002565,250,Landmark Information Group LTD
Boston Borough Council,http://statistics.data.gov.uk/id/local-authority/32UB,Environmental Health,Staff Training Expenses (Non-Payroll),17/01/2023,30002705,225,ABC Food Law LTD
Boston Borough Council,http://statistics.data.gov.uk/id/local-authority/32UB,Finance,Professional and Contractors Fees,17/01/2023,30002776,"2,550.00",Lyon Local Gov Ltd
Boston Borough Council,http://statistics.data.gov.uk/id/local-authority/32UB,Finance,Professional and Contractors Fees,17/01/2023,30002779,500,Lincolnshire County Council
Boston Borough Council,http://statistics.data.gov.uk/id/local-authority/32UB,Information Technology,Materials and Consumables,17/01/2023,30002834,812.65,Public Sector Partnership Services LTD
Boston Borough Council,http://statistics.data.gov.uk/id/local-authority/32UB,Information Technology,Materials and Consumables,17/01/2023,30002835,"1,128.00",Public Sector Partnership Services LTD
Boston Borough Council,http://statistics.data.gov.uk/id/local-authority/32UB,Legal Services,Legal Fees,17/01/2023,30002798,"6,358.94","""Personal Information Redacted"""
Boston Borough Council,http://statistics.data.gov.uk/id/local-authority/32UB,Leisure,Furniture and Equipment,17/01/2023,30002727,221.27,JP Lennard LTD
Boston Borough Council,http://statistics.data.gov.uk/id/local-authority/32UB,Leisure,Gas,17/01/2023,30002227,"2,038.40",SDL Biomass LTD
Boston Borough Council,http://statistics.data.gov.uk/id/local-authority/32UB,Leisure,Other Miscellaneous Expenses,17/01/2023,30002343,442.65,NVCS LTD
Boston Borough Council,http://statistics.data.gov.uk/id/local-authority/32UB,Leisure,Other Miscellaneous Expenses,17/01/2023,30002824,280,Just Magic
Boston Borough Council,http://statistics.data.gov.uk/id/local-authority/32UB,Leisure,Other Private Contractors,17/01/2023,30002084,"1,022.00",Max Associates (Holdings) LTD
Boston Borough Council,http://statistics.data.gov.uk/id/local-authority/32UB,Leisure,Other Private Contractors,17/01/2023,30002087,"1,277.50",Max Associates (Holdings) LTD
Boston Borough Council,http://statistics.data.gov.uk/id/local-authority/32UB,Leisure,Subscriptions to Organisations and Other Bodies,17/01/2023,30002633,359.07,Motion Picture Licensing Company
Boston Borough Council,http://statistics.data.gov.uk/id/local-authority/32UB,Operations,Agency Staff,17/01/2023,30002820,294.75,Workforce (Boston) LTD
Boston Borough Council,http://statistics.data.gov.uk/id/local-authority/32UB,Operations,Agency Staff,17/01/2023,30002821,"2,501.44",Comensura LTD
Boston Borough Council,http://statistics.data.gov.uk/id/local-authority/32UB,Planning,Professional and Contractors Fees,17/01/2023,30002884,"3,500.00",Stantec UK Ltd
Boston Borough Council,http://statistics.data.gov.uk/id/local-authority/32UB,Property Services,Agency Staff,17/01/2023,30002820,294.75,Workforce (Boston) LTD
Boston Borough Council,http://statistics.data.gov.uk/id/local-authority/32UB,Property Services,Furniture and Equipment,17/01/2023,30002785,289.09,Nerg
Boston Borough Council,http://statistics.data.gov.uk/id/local-authority/32UB,Property Services,Materials and Consumables,17/01/2023,30002640,891.83,Tristar Catering Solutions LTD
Boston Borough Council,http://statistics.data.gov.uk/id/local-authority/32UB,Property Services,Materials and Consumables,17/01/2023,30002657,960,Adcock Refrigeration and Air Conditioning LTD
Boston Borough Council,http://statistics.data.gov.uk/id/local-authority/32UB,Property Services,Materials and Consumables,17/01/2023,30002722,217.35,Healthguard LTD
Boston Borough Council,http://statistics.data.gov.uk/id/local-authority/32UB,Property Services,Materials and Consumables,17/01/2023,30002809,"1,431.10",Heritage Trust of Lincolnshire LTD
Boston Borough Council,http://statistics.data.gov.uk/id/local-authority/32UB,Property Services,Materials and Consumables,17/01/2023,30002843,"1,358.97",Periam and Williamson Ltd
Boston Borough Council,http://statistics.data.gov.uk/id/local-authority/32UB,Property Services,Materials and Consumables,17/01/2023,30002844,431.68,Periam and Williamson Ltd
Boston Borough Council,http://statistics.data.gov.uk/id/local-authority/32UB,Strategic Economic Development Projects,Professional and Contractors Fees,17/01/2023,30002875,550,The Engaging People Company
Boston Borough Council,http://statistics.data.gov.uk/id/local-authority/32UB,Communities,Grants and Contributions to Outside Bodies - No Service Received,19/01/2023,30002910,"1,000.00",Restore Church Boston
Boston Borough Council,http://statistics.data.gov.uk/id/local-authority/32UB,Economic Development,Professional Fees,19/01/2023,30002905,"2,088.00",Park Avenue Recruitment
Boston Borough Council,http://statistics.data.gov.uk/id/local-authority/32UB,Information Technology,Computer Hardware Maintenance,19/01/2023,30002292,435,One Source IT LTD
Boston Borough Council,http://statistics.data.gov.uk/id/local-authority/32UB,Operations,Other Private Contractors,19/01/2023,30002890,"10,687.50",LA Support LTD
Boston Borough Council,http://statistics.data.gov.uk/id/local-authority/32UB,Operations,Other Private Contractors,19/01/2023,30002891,"9,547.50",LA Support LTD
Boston Borough Council,http://statistics.data.gov.uk/id/local-authority/32UB,Operations,Vehicle Hire,19/01/2023,30002865,680,Phil Haines Coaches LTD
Boston Borough Council,http://statistics.data.gov.uk/id/local-authority/32UB,Operations,Vehicle Hire,19/01/2023,30002866,960,Phil Haines Coaches LTD
Boston Borough Council,http://statistics.data.gov.uk/id/local-authority/32UB,Bereavement,Internet Broadband Payments,24/01/2023,30002720,47.79,Multidata LTD
Boston Borough Council,http://statistics.data.gov.uk/id/local-authority/32UB,Bereavement,Purchase Of Goods For Resale,24/01/2023,30002731,330,The Yaboo Co LTD (Wesley Media)
Boston Borough Council,http://statistics.data.gov.uk/id/local-authority/32UB,BTAC,Other Miscellaneous Expenses,24/01/2023,30002965,213.4,Sunbelt Rentals LTD
Boston Borough Council,http://statistics.data.gov.uk/id/local-authority/32UB,Climate Change,Professional Fees,24/01/2023,30002929,210,Pab Languages Centre
Boston Borough Council,http://statistics.data.gov.uk/id/local-authority/32UB,Communities,Grants and Contributions to Outside Bodies - No Service Received,24/01/2023,30002892,518,"""Personal Information Redacted"""
Boston Borough Council,http://statistics.data.gov.uk/id/local-authority/32UB,Communities,Grants and Contributions to Outside Bodies - No Service Received,24/01/2023,30002968,"4,896.56",R G Carter Building Ltd
Boston Borough Council,http://statistics.data.gov.uk/id/local-authority/32UB,Communities,Other Miscellaneous Expenses,24/01/2023,30002782,250,Princebuild LTD
Boston Borough Council,http://statistics.data.gov.uk/id/local-authority/32UB,Corporate,Purchase of Hardware,24/01/2023,30002709,"155,574.84",Softcat
Boston Borough Council,http://statistics.data.gov.uk/id/local-authority/32UB,Corporate,Purchase of Hardware,24/01/2023,30002766,"12,857.74",Softcat
Boston Borough Council,http://statistics.data.gov.uk/id/local-authority/32UB,"Democratic, Civic & Electoral Services",Professional and Contractors Fees,24/01/2023,30002900,458.63,MPD FM (UK) Limited
Boston Borough Council,http://statistics.data.gov.uk/id/local-authority/32UB,Economic Development,Professional Fees,24/01/2023,30002846,"3,698.10",Influence Landscape Planning & Design Ltd
Boston Borough Council,http://statistics.data.gov.uk/id/local-authority/32UB,Economic Development,Professional Fees,24/01/2023,30002976,"22,821.66",YMD Boon LTD
Boston Borough Council,http://statistics.data.gov.uk/id/local-authority/32UB,Environmental Health,Other Private Contractors,24/01/2023,30002937,"1,331.00",Rookery Kennels
Boston Borough Council,http://statistics.data.gov.uk/id/local-authority/32UB,External Communications,Other Private Contractors,24/01/2023,30002836,671.24,thebigword
Boston Borough Council,http://statistics.data.gov.uk/id/local-authority/32UB,Finance,Public Sector Partnership Services,24/01/2023,30002818,"213,486.59",Public Sector Partnership Services LTD
Boston Borough Council,http://statistics.data.gov.uk/id/local-authority/32UB,Heritage,Internet Broadband Payments,24/01/2023,30002720,108.7,Multidata LTD
Boston Borough Council,http://statistics.data.gov.uk/id/local-authority/32UB,Information Technology,Other Communication Costs,24/01/2023,30002926,"3,500.00",GCI National Business
Boston Borough Council,http://statistics.data.gov.uk/id/local-authority/32UB,Information Technology,Telephone and Mobiles,24/01/2023,30002982,345.3,Vodafone LTD (Corporate)
Boston Borough Council,http://statistics.data.gov.uk/id/local-authority/32UB,Leisure,Internet Broadband Payments,24/01/2023,30002720,368,Multidata LTD
Boston Borough Council,http://statistics.data.gov.uk/id/local-authority/32UB,Leisure,Other Miscellaneous Expenses,24/01/2023,30002964,"1,278.00",Plexus Legal LLP
Boston Borough Council,http://statistics.data.gov.uk/id/local-authority/32UB,Operations,Agency Staff,24/01/2023,30002963,"2,704.42",Comensura LTD
Boston Borough Council,http://statistics.data.gov.uk/id/local-authority/32UB,Operations,Furniture and Equipment,24/01/2023,30002805,281.67,Portable offices (Hire) LTD
Boston Borough Council,http://statistics.data.gov.uk/id/local-authority/32UB,Operations,Maintenance,24/01/2023,30002717,361.07,Specialist Fleet Services LTD
Boston Borough Council,http://statistics.data.gov.uk/id/local-authority/32UB,Operations,Maintenance,24/01/2023,30002718,393.8,Specialist Fleet Services LTD
Boston Borough Council,http://statistics.data.gov.uk/id/local-authority/32UB,Operations,Maintenance,24/01/2023,30002719,332.83,Specialist Fleet Services LTD
Boston Borough Council,http://statistics.data.gov.uk/id/local-authority/32UB,Operations,Other Private Contractors,24/01/2023,30002967,"7,400.00",Enfortis Limited
Boston Borough Council,http://statistics.data.gov.uk/id/local-authority/32UB,Property Services,Gas,24/01/2023,30002723,"2,463.20",SDL Biomass LTD
Boston Borough Council,http://statistics.data.gov.uk/id/local-authority/32UB,Property Services,Materials and Consumables,24/01/2023,30002902,350,Eon UK Energy Services
Boston Borough Council,http://statistics.data.gov.uk/id/local-authority/32UB,Property Services,Materials and Consumables,24/01/2023,30002907,342,Instance Automatics Ltd
Boston Borough Council,http://statistics.data.gov.uk/id/local-authority/32UB,Property Services,Materials and Consumables,24/01/2023,30002918,780,C G Godfrey LTD
Boston Borough Council,http://statistics.data.gov.uk/id/local-authority/32UB,Property Services,Materials and Consumables,24/01/2023,30002921,"1,442.95",Periam and Williamson Ltd
Boston Borough Council,http://statistics.data.gov.uk/id/local-authority/32UB,Property Services,Other Private Contractors,24/01/2023,30002888,"1,048.60",Kings Armoured Security Services LTD
Boston Borough Council,http://statistics.data.gov.uk/id/local-authority/32UB,Property Services,Professional and Contractors Fees,24/01/2023,30002815,450.42,Chipside LTD
Boston Borough Council,http://statistics.data.gov.uk/id/local-authority/32UB,BTAC,Other Miscellaneous Expenses,26/01/2023,30002732,"17,540.00",Lighting & Illumination Technology Experience Ltd
Boston Borough Council,http://statistics.data.gov.uk/id/local-authority/32UB,Communities,Bed and Breakfast Accommodation (Homelessness Service),26/01/2023,30003006,"1,400.00",Beeston Lodge Hotel
Boston Borough Council,http://statistics.data.gov.uk/id/local-authority/32UB,Communities,Bed and Breakfast Accommodation (Homelessness Service),26/01/2023,30003007,326.62,Twenty Hotel And Bar (Boston) LTD
Boston Borough Council,http://statistics.data.gov.uk/id/local-authority/32UB,Communities,Bed and Breakfast Accommodation (Homelessness Service),26/01/2023,30003009,653.34,Twenty Hotel And Bar (Boston) LTD
Boston Borough Council,http://statistics.data.gov.uk/id/local-authority/32UB,Communities,Bed and Breakfast Accommodation (Homelessness Service),26/01/2023,30003010,326.67,Twenty Hotel And Bar (Boston) LTD
Boston Borough Council,http://statistics.data.gov.uk/id/local-authority/32UB,Communities,Bed and Breakfast Accommodation (Homelessness Service),26/01/2023,30003011,"1,573.48",Twenty Hotel And Bar (Boston) LTD
Boston Borough Council,http://statistics.data.gov.uk/id/local-authority/32UB,Communities,Bed and Breakfast Accommodation (Homelessness Service),26/01/2023,30003014,"1,139.20",AA Properties Boston LTD T/A Tunnard House
Boston Borough Council,http://statistics.data.gov.uk/id/local-authority/32UB,Communities,Bed and Breakfast Accommodation (Homelessness Service),26/01/2023,30003015,535.2,AA Properties Boston LTD T/A Tunnard House
Boston Borough Council,http://statistics.data.gov.uk/id/local-authority/32UB,Communities,Bed and Breakfast Accommodation (Homelessness Service),26/01/2023,30003017,871.5,Fairfield Guest House
Boston Borough Council,http://statistics.data.gov.uk/id/local-authority/32UB,Communities,Bed and Breakfast Accommodation (Homelessness Service),26/01/2023,30003018,"2,241.00",Fairfield Guest House
Boston Borough Council,http://statistics.data.gov.uk/id/local-authority/32UB,Communities,Bed and Breakfast Accommodation (Homelessness Service),26/01/2023,30003032,350,Town House Rooms
Boston Borough Council,http://statistics.data.gov.uk/id/local-authority/32UB,Communities,Bed and Breakfast Accommodation (Homelessness Service),26/01/2023,30003033,350,Town House Rooms
Boston Borough Council,http://statistics.data.gov.uk/id/local-authority/32UB,Communities,Bed and Breakfast Accommodation (Homelessness Service),26/01/2023,30003034,392,Town House Rooms
Boston Borough Council,http://statistics.data.gov.uk/id/local-authority/32UB,Communities,Grants and Contributions to Outside Bodies - No Service Received,26/01/2023,30002957,500,Centenary Methodist Church
Boston Borough Council,http://statistics.data.gov.uk/id/local-authority/32UB,Communities,Grants and Contributions to Outside Bodies - No Service Received,26/01/2023,30002958,500,Benington Community Heritage Trust
Boston Borough Council,http://statistics.data.gov.uk/id/local-authority/32UB,Communities,Grants and Contributions to Outside Bodies - No Service Received,26/01/2023,30003020,"3,250.66",Citizens Advice Mid Lincolnshire
Boston Borough Council,http://statistics.data.gov.uk/id/local-authority/32UB,Communities,Other Communication Costs,26/01/2023,30003036,300,BT Redcare
Boston Borough Council,http://statistics.data.gov.uk/id/local-authority/32UB,Economic Development,Professional Fees,26/01/2023,30003016,"1,387.00",Marrons Planning
Boston Borough Council,http://statistics.data.gov.uk/id/local-authority/32UB,Economic Development,Professional Fees,26/01/2023,30003023,"45,643.30",YMD Boon LTD
Boston Borough Council,http://statistics.data.gov.uk/id/local-authority/32UB,Environmental Health,Staff Training Expenses (Non-Payroll),26/01/2023,30002733,225,ABC Food Law LTD
Boston Borough Council,http://statistics.data.gov.uk/id/local-authority/32UB,Finance,Professional and Contractors Fees,26/01/2023,30002944,"15,050.00",Lincolnshire County Council
Boston Borough Council,http://statistics.data.gov.uk/id/local-authority/32UB,Land Charges & Licencing,Other Miscellaneous Expenses,26/01/2023,30003024,366.9,New Auto LTD T/A Mogo UK
Boston Borough Council,http://statistics.data.gov.uk/id/local-authority/32UB,Operations,Maintenance,26/01/2023,30002867,826.04,Chris Sellars Groundcare LTD
Boston Borough Council,http://statistics.data.gov.uk/id/local-authority/32UB,Operations,Maintenance,26/01/2023,30002868,250,Chris Sellars Groundcare LTD
Boston Borough Council,http://statistics.data.gov.uk/id/local-authority/32UB,Operations,Maintenance,26/01/2023,30002899,408.46,Chris Sellars Groundcare LTD
Boston Borough Council,http://statistics.data.gov.uk/id/local-authority/32UB,Operations,Maintenance,26/01/2023,30002904,488.3,Chris Sellars Groundcare LTD
Boston Borough Council,http://statistics.data.gov.uk/id/local-authority/32UB,Operations,Tyres,26/01/2023,30002977,"2,856.07",BA Bush and Son LTD
Boston Borough Council,http://statistics.data.gov.uk/id/local-authority/32UB,Operations,Vehicle Hire,26/01/2023,30002863,680,Phil Haines Coaches LTD
Boston Borough Council,http://statistics.data.gov.uk/id/local-authority/32UB,Operations,Vehicle Hire,26/01/2023,30002934,359.75,Phil Haines Coaches LTD
Boston Borough Council,http://statistics.data.gov.uk/id/local-authority/32UB,Property Services,Materials and Consumables,26/01/2023,30002961,"1,020.24",Nerg
Boston Borough Council,http://statistics.data.gov.uk/id/local-authority/32UB,Bereavement,Purchase Of Goods For Resale,31/01/2023,30002827,468.09,The Hilton Cabinet Company
Boston Borough Council,http://statistics.data.gov.uk/id/local-authority/32UB,Climate Change,Professional and Contractors Fees,31/01/2023,30002773,525,The Oyster Partnership Ltd
Boston Borough Council,http://statistics.data.gov.uk/id/local-authority/32UB,Communities,Bed and Breakfast Accommodation (Homelessness Service),31/01/2023,30003139,280,Twenty Hotel And Bar (Boston) LTD
Boston Borough Council,http://statistics.data.gov.uk/id/local-authority/32UB,Communities,Bed and Breakfast Accommodation (Homelessness Service),31/01/2023,30003140,326.67,Twenty Hotel And Bar (Boston) LTD
Boston Borough Council,http://statistics.data.gov.uk/id/local-authority/32UB,Communities,Bed and Breakfast Accommodation (Homelessness Service),31/01/2023,30003142,408.38,The Stanley Hotel
Boston Borough Council,http://statistics.data.gov.uk/id/local-authority/32UB,Communities,Bed and Breakfast Accommodation (Homelessness Service),31/01/2023,30003143,498,Fairfield Guest House
Boston Borough Council,http://statistics.data.gov.uk/id/local-authority/32UB,Communities,Grants and Contributions to Outside Bodies - No Service Received,31/01/2023,30003022,"16,250.00",Citizens Advice Mid Lincolnshire
Boston Borough Council,http://statistics.data.gov.uk/id/local-authority/32UB,Communities,Grants and Contributions to Outside Bodies - No Service Received,31/01/2023,30003035,500,Fishtoft Parish Council
Boston Borough Council,http://statistics.data.gov.uk/id/local-authority/32UB,Communities,Grants and Contributions to Outside Bodies - No Service Received,31/01/2023,30003043,500,Wyberton Parochial Church
Boston Borough Council,http://statistics.data.gov.uk/id/local-authority/32UB,Communities,Grants and Contributions to Outside Bodies - No Service Received,31/01/2023,30003057,"3,467.24",Warics LTD
Boston Borough Council,http://statistics.data.gov.uk/id/local-authority/32UB,Communities,Grants and Contributions to Outside Bodies - No Service Received,31/01/2023,30003059,"10,000.00",Lincolnshire Community Foundation
Boston Borough Council,http://statistics.data.gov.uk/id/local-authority/32UB,Communities,Other Private Contractors,31/01/2023,30003049,290,Princebuild LTD
Boston Borough Council,http://statistics.data.gov.uk/id/local-authority/32UB,Economic Development,Professional Fees,31/01/2023,30003004,"61,419.98",Boston College
Boston Borough Council,http://statistics.data.gov.uk/id/local-authority/32UB,Human Resources,Employee Related Schemes (Non-Payroll),31/01/2023,30003056,"2,895.25",Sodexo Motivation Solutions UK LTD- Childcare
Boston Borough Council,http://statistics.data.gov.uk/id/local-authority/32UB,Information Technology,Computer Hardware Purchase,31/01/2023,30002772,"20,632.47",Probrand Limited
Boston Borough Council,http://statistics.data.gov.uk/id/local-authority/32UB,Information Technology,Computer Software Licence Costs,31/01/2023,30003000,"3,418.75",Public Sector Partnership Services LTD
Boston Borough Council,http://statistics.data.gov.uk/id/local-authority/32UB,Information Technology,Computer Software Licence Costs,31/01/2023,30003001,250,Public Sector Partnership Services LTD
Boston Borough Council,http://statistics.data.gov.uk/id/local-authority/32UB,Information Technology,Computer Software Licence Costs,31/01/2023,30003002,"1,750.00",Public Sector Partnership Services LTD
Boston Borough Council,http://statistics.data.gov.uk/id/local-authority/32UB,Information Technology,Computer Software Licence Costs,31/01/2023,30003003,500,Public Sector Partnership Services LTD
Boston Borough Council,http://statistics.data.gov.uk/id/local-authority/32UB,Information Technology,Internal Printing,31/01/2023,30002955,"1,039.16",Public Sector Partnership Services LTD
Boston Borough Council,http://statistics.data.gov.uk/id/local-authority/32UB,Leisure,Cleaning Contract,31/01/2023,30002841,601.75,Phs Group PLC
Boston Borough Council,http://statistics.data.gov.uk/id/local-authority/32UB,Leisure,Equipment Lease Payments (More than 12 months),31/01/2023,30002823,422.5,NVCS LTD
Boston Borough Council,http://statistics.data.gov.uk/id/local-authority/32UB,Operations,Agency Staff,31/01/2023,30003041,"2,147.84",Comensura LTD
Boston Borough Council,http://statistics.data.gov.uk/id/local-authority/32UB,Operations,Maintenance,31/01/2023,30002915,"2,765.00",Peter Smith Commercials LTD
Boston Borough Council,http://statistics.data.gov.uk/id/local-authority/32UB,Operations,Maintenance,31/01/2023,30002922,"4,200.00",Specialist Fleet Services LTD
Boston Borough Council,http://statistics.data.gov.uk/id/local-authority/32UB,Operations,Vehicle Hire,31/01/2023,30002864,400,Phil Haines Coaches LTD
Boston Borough Council,http://statistics.data.gov.uk/id/local-authority/32UB,Townscape Heritage,Other Miscellaneous Expenses,31/01/2023,30003039,295,Glazed Expressions
